Cogmind - Beta 16 @@@ ROGUE MODE // 2025.11.11 @ 04:11:34 Player: cptwinky Result: Escaped! Performance ------------- Evolutions (9) 4500 Regions Visited (26) 5200 Robots Destroyed (330) 1650 Value Destroyed (19040) 19040 Prototype IDs (27) 540 Alien Tech Used (0) 0 Bonus (17361) 17361 TOTAL SCORE: 48291 Bonus ------- High Alert Combat Kills 1181 Follower Combat Kills 5021 Entered Garrisons 1800 Used RIF Installer 6500 Win 3000 Friendly Fire -141 Cogmind --------- Core Integrity 1414/1600 Matter 240/300 Energy 482/505 System Corruption 4% Temperature Cool (16) Movement Treading (156) Location To Epsilon Eridani Parts ------- > --- POWER (3) -------- Reinforced Antimatter Reactor Light Quantum Reactor Light Quantum Reactor > --- PROPULSION (7) --- Improved Heavy Treads Improved Heavy Treads Biometal Medium Treads Advanced Heavy Siege Treads > --- UTILITY (12) ----- Advanced Coolant Injector Huge Storage Unit Experimental Sensor Array Advanced Signal Interpreter Centrium Light Armor Plating Improved Hacking Suite Improved System Shield Relay Coupler [NC] (1) Relay Coupler [Swarmer] (21) Relay Coupler [Sentry] (27) Relay Coupler [Hunter] (1) Relay Coupler [Heavy] (6) > --- WEAPON (3) ------- Matter Neutralizer Enhanced Hardcell Cannon Gamma Bomb Array > --- INVENTORY (25) --- Quantum Reactor Advanced Medium Treads Biometal Medium Treads Compact Battery (200) Matter Compressor (226) Core Analyzer Improved Transmission Jammer Graphene Brace Relay Coupler [NC] (41) Relay Coupler [Sentry] (28) Relay Coupler [Sentry] (30) Advanced Component Analysis Suite Compact HERF Cannon Improved Datajack Improved Remote Datajack Advanced Remote Datajack Advanced Remote Datajack Improved Plasma Cutter Plasma Lance Peak State ------------ > --- POWER ------------ Reinforced Antimatter Reactor Light Quantum Reactor Light Quantum Reactor > --- PROPULSION ------- Improved Heavy Treads Improved Heavy Treads Biometal Medium Treads Advanced Heavy Siege Treads > --- UTILITY ---------- Advanced Coolant Injector Huge Storage Unit Experimental Sensor Array Advanced Signal Interpreter Centrium Light Armor Plating Improved Hacking Suite Improved System Shield Relay Coupler [NC] Relay Coupler [Swarmer] Relay Coupler [Sentry] Relay Coupler [Hunter] Relay Coupler [Heavy] > --- WEAPON ----------- Matter Neutralizer Enhanced Hardcell Cannon Gamma Bomb Array > --- INVENTORY -------- Quantum Reactor Advanced Medium Treads Biometal Medium Treads Compact Battery Matter Compressor Core Analyzer Improved Transmission Jammer Graphene Brace Relay Coupler [NC] Relay Coupler [Sentry] Relay Coupler [Sentry] Advanced Component Analysis Suite Compact HERF Cannon Improved Datajack Improved Remote Datajack Advanced Remote Datajack Advanced Remote Datajack Improved Plasma Cutter Plasma Lance [Rating: 174] Favorites ----------- Power Heavy Ion Engine Engine Heavy Ion Engine Power Core Neutrino Core Reactor Light Antimatter Reactor Propulsion Improved Treads Treads Improved Treads Leg Flexi-carbon Leg Wheel Centrium Wheel Flight Unit Surge Thruster Utility Huge Storage Unit Device Advanced Cooling System Storage Huge Storage Unit Processor Advanced Signal Interpreter Hackware Relay Coupler [Sentry] Protection Reflective Plating Weapon Improved Medium Laser Energy Gun Improved Medium Laser Energy Cannon Heavy Ion Cannon Ballistic Gun KE Penetrator Ballistic Cannon Improved Light Cannon Launcher Mini Grenade Launcher Special Weapon Improved Remote Datajack Impact Weapon Heavy Flail Piercing Weapon Plasma Lance Special Melee Weapon Improved Datajack Build | -11 -10 -10 -9 -9 -9 -8 -8 -8 -8 -8 -7 -7 -7 -7 -6 -6 -5 -5 -4 -4 -4 -4 -3 -3 -2 -1 ------- Run | Yrd Mat Min Mat Min Exi Min Mat Gar Mat Gar Fac Gar Fac Gar Fac Gar Fac Gar Fac Gar Fac Gar Res Gar Res Acc Slots Evolved 18 | . . . 2 . . . 2 . . . 2 . . . 2 . 2 . 2 . . . 2 . 2 2 Power 2 | . . . . . . . . . . . . . . . 1 . . . . . . . . . . 1 Propulsion 5 | . . . 1 . . . . . . . . . . . 1 . . . . . . . 2 . 1 . Utility 10 | . . . 1 . . . 1 . . . 2 . . . . . 2 . 2 . . . . . 1 1 Weapon 1 | . . . . . . . 1 . . . . . . . . . . . . . . . . . . . Parts Attached 298 | 6 4 5 23 1 1 . 16 8 1 12 8 19 3 20 6 26 3 29 8 13 12 15 4 17 18 20 Power 43 | 1 . 2 2 . . . 1 . . 1 . 2 . 3 2 4 1 7 . 3 1 4 1 2 . 6 Engine 18 | 1 . 2 2 . . . 1 . . 1 . 1 . 2 1 2 . 5 . . . . . . . . Core 12 | . . . . . . . . . . . . 1 . 1 1 1 1 2 . 3 . 2 . . . . Reactor 13 | . . . . . . . . . . . . . . . . 1 . . . . 1 2 1 2 . 6 Propulsion 58 | 2 . . 7 . . . 4 4 . 5 . 5 . . 1 2 . 9 4 1 . 2 1 3 6 2 Treads 36 | 2 . . 7 . . . 4 4 . 5 . 2 . . 1 1 . 2 . 1 . . . . 5 2 Leg 12 | . . . . . . . . . . . . 1 . . . . . 4 . . . 2 1 3 1 . Wheel 9 | . . . . . . . . . . . . 1 . . . 1 . 3 4 . . . . . . . Hover . | . . . . . . . . . . . . . . . . . . . . . . . . . . . Flight 1 | . . . . . . . . . . . . 1 . . . . . . . . . . . . . . Utility 124 | 1 2 1 6 . . . 5 4 1 4 6 6 2 12 2 9 1 12 3 6 6 9 2 9 9 6 Device 32 | . . . . . . . 2 3 . 1 3 . 1 3 2 5 . 1 2 1 3 . 2 . 2 1 Storage 6 | 1 1 . 2 . . . . . . . 1 . . . . . . . . . . . . . 1 . Processor 7 | . . . 1 . . . . . . 1 . 1 . . . . 1 1 . . 2 . . . . . Hackware 54 | . . . . . . . 1 . 1 1 2 3 1 7 . 3 . 7 1 3 1 5 . 8 5 5 Protection 25 | . 1 1 3 . . . 2 1 . 1 . 2 . 2 . 1 . 3 . 2 . 4 . 1 1 . Artifact . | . . . . . . . . . . . . . . . . . . . . . . . . . . . Weapon 73 | 2 2 2 8 1 1 . 6 . . 2 2 6 1 5 1 11 1 1 1 3 5 . . 3 3 6 Energy Gun 21 | . . . 1 1 . . 3 . . 2 . . . 3 . 9 1 . . . . . . 1 . . Energy Cannon 11 | . . 1 1 . . . . . . . . 3 . . . 1 . . . 1 2 . . . 1 1 Ballistic Gun 7 | 2 . . 1 . . . . . . . 1 1 . . . . . . . 1 . . . 1 . . Ballistic Cannon 13 | . . 1 3 . . . 1 . . . . . . 1 1 . . 1 . . 2 . . . 2 1 Launcher 7 | . 1 . 2 . . . 1 . . . . 2 . . . . . . . . . . . . . 1 Special Weapon 11 | . 1 . . . . . . . . . 1 . 1 1 . 1 . . 1 1 1 . . 1 . 2 Impact Weapon 1 | . . . . . . . 1 . . . . . . . . . . . . . . . . . . . Slashing Weapon . | . . . . . . . . . . . . . . . . . . . . . . . . . . . Piercing Weapon 1 | . . . . . . . . . . . . . . . . . . . . . . . . . . 1 Special Melee Weapon 1 | . . . . . 1 . . . . . . . . . . . . . . . . . . . . . Unidentified Prototypes 8 | . . . 3 . . . 1 . . . . . . . 2 . . . . . . . . . 1 1 Parts Lost 57 | . . . . . . . . 2 . 5 1 8 . . . 2 . 14 1 1 . 6 4 9 . 4 Power 7 | . . . . . . . . . . 1 . 1 . . . . . 2 . . . . 1 1 . 1 Propulsion 9 | . . . . . . . . . . 1 . 2 . . . . . 3 . . . . . 3 . . Utility 21 | . . . . . . . . 2 . 1 1 3 . . . 1 . 5 1 . . 3 1 2 . 1 Weapon 20 | . . . . . . . . . . 2 . 2 . . . 1 . 4 . 1 . 3 2 3 . 2 Highest Loss Streak 13 | . . . . . . . . 1 . 2 1 3 . . . 1 . 13 1 1 . 2 4 3 . 2 To Critical Strikes 3 | . . . . . . . . . . . . . . . . . . 1 . . . . . 1 . 1 Average Backups 23 | 3 9 14 18 25 25 25 24 24 25 24 24 23 24 24 24 24 24 22 23 23 23 22 23 24 24 23 Power 1 | . 1 1 1 1 1 1 1 1 1 . . . . . . . . 1 2 1 . 1 1 2 3 1 Propulsion 1 | 1 2 2 2 3 3 3 3 3 4 1 1 . . . 1 1 1 1 . . 1 2 1 3 3 2 Utility 10 | . 1 3 5 8 9 9 8 7 8 9 11 12 12 13 13 11 10 11 11 12 12 11 12 12 12 11 Weapon 7 | 1 4 6 7 10 10 10 10 11 10 9 9 7 8 7 6 9 9 5 6 6 6 4 3 2 2 4 Tool/Special . | . . . . . . . . . . . . . . . . . . . . . . . . . . . Unused Backups 56 | . . 5 7 2 . . 3 1 . 4 2 1 . 6 . . 2 2 1 3 1 1 . 2 1 12 Power 5 | . . 1 1 1 . . . . . . . . . . . . . . . 1 . . . . . 1 Propulsion 7 | . . 1 2 . . . . . . . . . . . . . . . 1 . . . . 1 . 2 Utility 27 | . . . 1 1 . . 1 . . 2 . . . 4 . . 2 2 . 2 1 1 . 1 . 9 Weapon 14 | . . 2 3 . . . 2 1 . 1 2 1 . 1 . . . . . . . . . . 1 . Tool/Special 3 | . . 1 . . . . . . . 1 . . . 1 . . . . . . . . . . . . Average Slot Usage (%) 93 | . 86 100 99 100 100 100 93 100 100 99 97 97 92 91 76 83 86 90 93 98 93 90 93 90 83 86 Engine 6 | . 14 14 11 11 11 11 9 9 9 8 7 3 7 6 8 6 9 6 10 1 . . . . . . Core 1 | . . . . . . . . . . . . 3 . . 1 4 1 3 . 8 9 6 2 . . . Reactor 1 | . . . . . . . . . . . . . . . . 1 . . . . . 3 5 9 8 10 Treads 16 | . 28 28 33 33 33 33 27 27 27 27 23 17 7 7 6 7 11 3 . . 5 3 . . 15 16 Leg 1 | . . . . . . . . . . . . 2 . . . . . 10 4 . . 1 13 14 1 . Wheel 3 | . . . . . . . . . . . . . 7 7 5 4 . 2 10 20 10 11 14 13 . . Device 8 | . . . . . . . 2 18 15 11 11 14 8 6 6 15 16 6 14 14 15 11 12 11 5 6 Storage 7 | . 14 14 11 11 11 11 9 9 9 9 7 7 7 7 6 6 5 5 5 5 5 5 4 4 4 4 Processor 4 | . . . 7 11 11 11 7 . . 4 . . . . . . 4 9 10 10 10 7 4 4 4 4 Hackware 10 | . . . . . . . 7 . 2 2 15 14 21 22 13 12 17 12 15 15 14 14 14 15 26 32 Protection 7 | . 1 14 14 11 11 11 8 9 9 9 7 6 7 7 6 2 . 8 5 5 5 7 5 3 2 1 Energy Gun 7 | . . . . . . . 3 24 25 23 20 6 . 15 18 17 16 9 5 4 3 . . 1 . . Energy Cannon 2 | . . 13 . . . . . 2 . 1 . 13 8 3 . . . 3 5 2 1 1 3 1 3 1 Ballistic Cannon 6 | . . 12 20 21 11 21 17 . . . . . . . . . . . . . 2 9 7 5 6 7 Special Weapon 1 | . . . . . . . . . . . . 1 10 2 . . . . 4 3 3 1 . 1 2 2 Peak Build Rating 174 | 6 8 10 26 26 27 26 33 36 34 37 43 56 58 63 81 87 100 98 106 112 117 120 133 134 147 174 Average Rating 67 | 5 6 8 20 25 26 26 28 34 34 34 40 46 54 58 76 80 97 80 90 108 110 114 129 121 134 160 On Entrance 60 | . 6 8 10 25 26 26 26 33 34 34 34 42 54 55 63 79 87 97 77 106 109 115 117 127 103 144 Avg Prop Armor Cover (%) 7 | . . . . . . . . . . . . 5 7 7 10 15 . 5 4 11 10 5 7 8 5 3 Naked Turns . | . . . . . . . . . . . . . . . . . . . . . . . . . . . Heaviest Build 174 | 14 32 34 100 100 100 100 107 111 110 112 107 120 120 133 141 151 121 134 128 143 153 168 158 159 151 174 Greatest Support 265 | 40 40 40 69 69 69 69 69 63 63 66 63 71 28 28 28 130 130 130 64 64 75 75 48 48 253 265 Greatest Overweight (x) 5 | . . . 1 1 1 1 1 1 1 1 1 4 4 4 5 5 . 4 2 4 4 5 3 4 4 . Average Overweight (x) 1 | . . . . 1 1 1 1 1 1 1 1 1 3 3 4 3 . 1 1 1 3 3 2 2 . . Largest Inventory Capacity 25 | 8 15 15 25 25 25 25 25 25 25 25 25 25 25 25 25 25 25 25 25 25 25 25 25 25 25 25 Average Capacity 23 | 6 14 15 19 25 25 25 25 25 25 25 25 25 25 25 25 25 25 25 25 25 25 25 25 25 25 25 Most Carried 25 | 6 13 15 25 25 25 25 25 25 25 25 25 25 25 25 25 25 25 25 25 25 25 25 25 25 25 25 Average Carried 23 | 3 9 14 18 24 25 24 24 24 25 24 24 23 24 24 24 24 24 22 23 24 24 24 24 24 24 23 Final Capacity 25 | 8 15 15 25 25 25 25 25 25 25 25 25 25 25 25 25 25 25 25 25 25 25 25 25 25 25 25 Final Carried 25 | 6 13 15 25 25 25 25 25 25 25 25 25 24 25 25 25 25 25 25 25 25 24 25 24 25 25 19 Class Distribution -------------------- 40% | Botlord-Tank 26% | Mutant 8% | Botlord-Mutant 6% | Bothacker-Tank 5% | Scavenger-Tank Dominant Class ---------------- Mutant | -10/Materials Mutant | -10/Mines Mutant | -9/Materials Mutant | -9/Mines Mutant | -9/Exiles Mutant | -8/Mines Mutant | -8/Materials Scavenger-Tank | -8/Garrison Scavenger-Tank | -8/Materials Bothacker-Gunner | -8/Garrison Bothacker-Tank | -7/Factory Botlord-Tank | -7/Garrison Botlord-Mutant | -7/Factory Botlord-Tank | -7/Garrison Botlord-Tank | -6/Factory Botlord-Tank | -6/Garrison Botlord-Tank | -5/Factory Botlord-Tank | -5/Garrison Botlord-Tank | -4/Factory Botlord-Tank | -4/Garrison Botlord-Tank | -4/Factory Botlord-Tank | -4/Garrison Botlord-Tank | -3/Research Botlord-Mutant | -3/Garrison Botlord-Tank | -2/Research Botlord-Tank | -1/Access Resources | -11 -10 -10 -9 -9 -9 -8 -8 -8 -8 -8 -7 -7 -7 -7 -6 -6 -5 -5 -4 -4 -4 -4 -3 -3 -2 -1 ----------- Run | Yrd Mat Min Mat Min Exi Min Mat Gar Mat Gar Fac Gar Fac Gar Fac Gar Fac Gar Fac Gar Fac Gar Res Gar Res Acc Matter Collected 12408 | 266 69 339 1046 359 38 86 658 230 40 350 88 664 127 725 141 904 60 617 109 716 107 1453 125 784 582 1725 Remotely . | . . . . . . . . . . . . . . . . . . . . . . . . . . . Salvage Created 14052 | 28 255 328 1412 419 . 69 1085 730 86 1024 75 963 . 118 72 1502 137 1394 79 739 197 609 178 848 306 1399 Parts 602 | 3 29 13 92 34 . 18 53 25 5 43 . 46 . 5 1 29 3 38 3 22 5 19 4 31 22 59 Haulers Intercepted 9 | . . . 6 . . . 3 . . . . . . . . . . . . . . . . . . . Recyclers Shooed 4 | . 1 . 2 . . . 1 . . . . . . . . . . . . . . . . . . . Parts Field Recycled . | . . . . . . . . . . . . . . . . . . . . . . . . . . . Retrieved Matter . | . . . . . . . . . . . . . . . . . . . . . . . . . . . Parts Self-Destructed . | . . . . . . . . . . . . . . . . . . . . . . . . . . . Prevented . | . . . . . . . . . . . . . . . . . . . . . . . . . . . Parts Restored . | . . . . . . . . . . . . . . . . . . . . . . . . . . . Kills | -11 -10 -10 -9 -9 -9 -8 -8 -8 -8 -8 -7 -7 -7 -7 -6 -6 -5 -5 -4 -4 -4 -4 -3 -3 -2 -1 ------- Run | Yrd Mat Min Mat Min Exi Min Mat Gar Mat Gar Fac Gar Fac Gar Fac Gar Fac Gar Fac Gar Fac Gar Res Gar Res Acc Combat Hostiles Destroyed 290 | . 8 4 38 18 . 8 29 16 4 26 1 21 . 5 1 24 2 22 1 1 2 15 1 15 6 22 Melee 1 | . . . . . . . 1 . . . . . . . . . . . . . . . . . . . Guns 85 | . 5 . 2 . . . 1 13 3 20 . 6 . 2 . 15 2 12 . 1 . 1 . 2 . . Cannons 116 | . . 4 23 12 . 3 17 . . . . 6 . . . . . 1 1 . 1 14 . 11 6 17 AOE 62 | . 3 . 13 6 . 5 8 3 . 3 . 8 . 3 . 3 . 7 . . . . . . . . Classes Destroyed 19 | 1 6 1 4 1 . . 2 1 . 1 . . . . . . . . . . . . . 1 . 1 Worker 4 | . 1 . 1 . . . 1 . . . . . . . . . . . . . 1 . . . . . Builder 5 | . 3 . . 2 . . . . . . . . . . . . . . . . . . . . . . Tunneler 4 | 1 2 . . 1 . . . . . . . . . . . . . . . . . . . . . . Hauler 9 | . . . 6 . . . 3 . . . . . . . . . . . . . . . . . . . Recycler 3 | . . . 2 1 . . . . . . . . . . . . . . . . . . . . . . Mechanic 1 | . . . 1 . . . . . . . . . . . . . . . . . . . . . . . Operator 4 | . 2 . 1 . . . . . . . . . . . . . . . . . . . . . . 1 Watcher 8 | . 1 . 1 . . . 1 . . . . 1 . . . 2 . 1 . . . . . . . 1 Swarmer 67 | . 2 . 14 6 . 6 4 . 3 4 . 7 . 3 . 2 . 9 . . . 2 . 3 . 2 Cutter 8 | . . . . . . . . 3 . 2 . 3 . . . . . . . . . . . . . . Grunt 125 | . 6 2 12 11 . 2 16 10 1 11 . 4 . . . 17 . 8 . 1 1 8 . 9 1 5 Brawler 3 | . . . 2 . . . . . . . . . . . . . . . . . . 1 . . . . Duelist 3 | . . . . 1 . . . . . . . . . . . . . 1 . . . 1 . . . . Sentry 40 | . . 2 10 . . . 6 4 . 4 1 2 . 1 1 3 2 1 . . . . 1 . . 2 Specialist 3 | . . . . . . . 2 . . . . . . . . . . . . . . . . . . 1 Hunter 14 | . . . . . . . 1 . . . . . . . . 2 . 3 . . 1 . 1 2 . 4 Programmer 26 | . . . . . . . . . . 5 . 5 . 1 . . . . . . . 3 . . 5 7 Heavy 1 | . . . . . . . . . . . . . . . . . . . . . . . . . . 1 Behemoth 1 | . . . . . . . . . . . . . . . . . . . . . . . . 1 . . Infiltrator 1 | . . . . . . . . . . . . . . . . . . . 1 . . . . . . . Best Kill Streak 10 | 1 9 2 8 5 . 3 6 6 2 5 1 4 . 3 1 9 2 10 1 1 2 6 1 4 2 3 Combat Bots Only 10 | . 2 2 4 4 . 3 5 6 2 5 1 4 . 3 1 9 2 10 1 1 1 6 1 4 2 4 Max Kills in Single Turn 4 | 1 4 1 3 4 . 2 3 4 2 3 1 3 . 1 1 2 1 4 1 1 1 1 1 1 1 1 Gunslinging 1 | . . . . . . . . . 1 1 . . . . . . . . . . . . . . . . Exploded 4 | . 1 . 3 3 . 2 2 3 . 3 . 3 . 1 . 2 . 4 . . . . . . . . Melee 1 | . . . . . . . 1 . . . . . . . . . . . . . . . . . . . Uniques/NPCs Destroyed . | . . . . . . . . . . . . . . . . . . . . . . . . . . . Combat | -11 -10 -10 -9 -9 -9 -8 -8 -8 -8 -8 -7 -7 -7 -7 -6 -6 -5 -5 -4 -4 -4 -4 -3 -3 -2 -1 -------- Run | Yrd Mat Min Mat Min Exi Min Mat Gar Mat Gar Fac Gar Fac Gar Fac Gar Fac Gar Fac Gar Fac Gar Res Gar Res Acc Hostile Shots Fired 1701 | . 37 22 79 36 . 11 72 41 20 103 38 92 . 38 20 201 9 173 6 45 67 179 88 128 20 176 Missed 530 | . 13 7 37 12 . 4 23 6 9 29 19 30 . 9 7 50 5 33 2 10 18 66 29 48 5 59 Hits 1171 | . 24 15 42 24 . 7 49 35 11 74 19 62 . 29 13 151 4 140 4 35 49 113 59 80 15 117 Melee 25 | . . . . 1 . . . . . 7 . 6 . . . . . 2 . . . 9 . . . . Projectile 1146 | . 24 15 42 23 . 7 49 35 11 67 19 56 . 29 13 151 4 138 4 35 49 104 59 80 15 117 AOE 1 | . . . . . . . . . . . . . . 1 . . . . . . . . . . . . Critical Strikes 58 | . . . 2 . . . 2 1 1 4 . 5 . 1 . 4 . 4 . 5 8 12 1 2 . 6 Actively Blocked 29 | . . . . . . . . . . . . . . . . . . . . 5 8 10 1 1 . 4 Part Disruptions 1 | . . . . . . . . . . . . . . . . . . . . . . . . . . 1 Damage Taken 20866 | . 308 225 645 283 . 127 581 527 95 1138 140 1135 5 443 129 2463 92 2730 188 734 770 2428 859 1491 377 2953 Core 1868 | . 84 17 163 33 . . 33 93 12 123 11 145 . 58 . 154 . 294 . 33 18 243 36 57 75 186 Absorbed by Shields 691 | . . . . . . . . . . 142 . . . . . 278 . . . . 170 11 . 90 . . Reduced by Siege Mode 107 | . . . . . . . . . . . . . . . . 89 . 5 . . . . . . 13 . Ignored by Resistances 208 | . . . 24 35 . 8 28 63 18 32 . . . . . . . . . . . . . . . . Regen/Repaired (Parts) 571 | . . . 65 . . . 129 . . . . . 35 64 117 . . 114 47 . . . . . . . Core Remaining (%) 75 | 100 . 59 . . . 51 . . . 52 . . . 69 . 81 . 70 . . . 74 . 92 94 88 Volleys Fired 1211 | 1 35 23 80 39 . 9 49 43 27 68 6 82 3 71 20 82 3 109 15 93 19 81 15 78 49 111 Largest 3 | 2 2 2 2 2 . 2 3 3 3 3 3 3 1 3 3 3 3 3 3 3 3 3 2 3 3 3 Hottest 255 | 40 100 90 90 66 . 66 168 168 168 168 187 205 5 225 225 255 255 255 228 228 113 165 88 183 221 174 Shots Fired 2067 | 2 60 33 152 74 . 15 96 97 41 169 16 150 3 96 34 187 9 173 23 101 25 144 16 112 63 176 Gun 866 | 2 50 . 20 . . . 9 84 41 156 15 68 . 38 21 172 9 81 9 71 3 4 . 13 . . Cannon 970 | . . 33 125 70 . 12 81 12 . 12 . 70 . 30 9 5 . 74 4 5 15 118 16 77 51 151 Launcher 45 | . 9 . 7 4 . 3 6 1 . 1 . 4 . 5 . 3 . 2 . . . . . . . . Special 186 | . 1 . . . . . . . . . 1 8 3 23 4 7 . 16 10 25 7 22 . 22 12 25 Kinetic 712 | 2 50 10 132 70 . 12 81 . . . . 6 . 2 . . . . . 55 9 93 2 56 26 106 Thermal 1037 | . 1 23 13 . . . 9 96 41 168 15 132 . 66 30 176 9 155 13 21 1 29 . 11 24 4 Explosive 45 | . 9 . 7 4 . 3 6 1 . 1 . 4 . 5 . 3 . 2 . . . . . . . . Electromagnetic 88 | . . . . . . . . . . . . . . . . 1 . . . . 8 . 14 23 1 41 Robot Hit Streak 51 | 2 7 12 15 30 . 7 28 16 9 10 6 17 12 20 6 43 14 16 22 51 8 10 13 8 11 13 Robot Miss Streak 6 | . 3 1 4 4 . 1 5 6 4 5 1 5 . 4 3 5 . 3 1 2 3 5 3 3 2 4 Penetration Max 1 | . . . . . . . . . . . . . . . . . . . . . . . . 1 . . Secondary Targets 16 | . . . . . . . . 2 1 3 . . . . . 8 1 1 . . . . . . . . Max Gunslinging Chain 1 | . . . . . . . . 1 1 1 . . . . . 1 1 1 . . . . . . . . Shots Hit Robots 1291 | 2 29 26 94 45 4 9 70 58 13 105 14 97 3 46 17 137 10 124 20 87 16 77 6 57 24 101 Core Hits 584 | 1 34 9 56 25 . 10 49 35 4 45 1 38 . 11 3 74 5 53 3 27 4 34 . 21 8 34 Critical Kills 16 | . 1 . . . . . . . . . . 1 . . . . . 4 . 1 . 2 . 7 . . Critical Parts Destroyed 16 | . . . . . . . . . . . . 2 . . . 1 . 3 1 2 . 2 . 5 . . Critical Strikes 98 | . 1 1 3 1 . . 5 8 2 13 1 8 . 1 2 11 2 8 1 3 . 7 . 17 . 3 Burn 45 | . . . . . . . . 8 2 13 1 5 . 1 2 10 2 1 . . . . . . . . Meltdown 2 | . . . . . . . . . . . . . . . . . . 2 . . . . . . . . Destroy 31 | . 1 . . . . . . . . . . 2 . . . 1 . 5 1 3 . 4 . 14 . . Blast 19 | . . 1 3 1 . . 5 . . . . . . . . . . . . . . 3 . 3 . 3 Smash 1 | . . . . . . . . . . . . 1 . . . . . . . . . . . . . . Melee Attacks 55 | . . . . . 4 . 6 . 1 6 5 1 . 2 . 12 2 6 . 7 . . . . . 3 Impact 21 | . . . . . . . 6 . . . 3 1 . 2 . 9 . . . . . . . . . . Slashing . | . . . . . . . . . . . . . . . . . . . . . . . . . . . Piercing 3 | . . . . . . . . . . . . . . . . . . . . . . . . . . 3 Sneak Attacks 30 | . . . . . 4 . . . . 6 . 1 . . . 5 . 6 . 7 . . . . . 1 Combat Hostiles . | . . . . . . . . . . . . . . . . . . . . . . . . . . . Follow-up Attacks . | . . . . . . . . . . . . . . . . . . . . . . . . . . . Damage Inflicted 34843 | 23 1133 504 3028 1548 . 563 2611 1224 219 2056 202 2739 . 1234 300 3314 144 3192 282 1447 377 2106 221 1595 743 4038 Guns 11499 | 23 367 . 249 . . . 36 1051 219 1840 202 822 . 645 300 2372 144 1232 174 1412 33 49 . 329 . . Cannons 15879 | . . 459 1650 883 . 195 1462 . . . . 1330 . 67 . . . 1321 108 35 327 2057 216 1266 703 3800 Explosions 6432 | . 762 . 1035 645 . 345 795 173 . 212 . 517 . 522 . 783 . 639 . . 4 . . . . . Melee 714 | . . . . . . . 296 . . . . 70 . . . 159 . . . . . . . . . 189 Ramming 319 | . 4 45 94 20 . 23 22 . . 4 . . . . . . . . . . 13 . 5 . 40 49 Kinetic 12228 | 23 367 124 1738 883 . 195 1462 . . . . 21 . . . . . . . 1277 84 1620 . 993 666 2775 Thermal 13793 | . . 335 290 350 . . 36 1051 219 1840 202 2131 . 712 300 2372 144 2553 282 170 . 486 . 283 37 . Explosive 5949 | . 762 . 906 295 . 345 795 173 . 212 . 517 . 522 . 783 . 639 . . . . . . . . Electromagnetic 1840 | . . . . . . . . . . . . . . . . . . . . . 280 . 216 319 . 1025 Impact 525 | . . . . . . . 296 . . . . 70 . . . 159 . . . . . . . . . . Slashing . | . . . . . . . . . . . . . . . . . . . . . . . . . . . Piercing 189 | . . . . . . . . . . . . . . . . . . . . . . . . . . 189 Highest Corruption 6 | . . . . . . . . . . 5 . 3 3 3 5 5 . . . . 1 6 . . 1 4 Average Corruption 3 | . . . . . . . . . . 4 . 2 3 3 4 4 . . . . 1 4 . . 1 2 Corruption Purged 8 | . . . . . . . . . . . . . . . . 5 . . . . . . . . . 3 Corruption Blocked . | . . . . . . . . . . . . . . . . . . . . . . . . . . . Effects 175 | . . . . . . . . . . 42 . 21 5 32 7 16 . . . . . 28 . . 1 23 Message Errors 53 | . . . . . . . . . . 15 . 10 . 7 2 4 . . . . . 6 . . . 9 Matter Fused 33 | . . . . . . . . . . 9 . 4 . 6 1 3 . . . . . 7 . . . 3 Heat Flow Errors 21 | . . . . . . . . . . 3 . 3 3 2 1 . . . . . . 3 . . 1 5 Energy Discharges 22 | . . . . . . . . . . 3 . 2 . 8 1 4 . . . . . 3 . . . 1 Parts Rejected 4 | . . . . . . . . . . 1 . . . 1 . 1 . . . . . 1 . . . . Parts Fused 1 | . . . . . . . . . . 1 . . . . . . . . . . . . . . . . Data Loss (minor) 14 | . . . . . . . . . . 5 . . 1 4 1 1 . . . . . 1 . . . 1 Data Loss (major) 10 | . . . . . . . . . . 3 . 1 1 1 . . . . . . . 2 . . . 2 Misfires 5 | . . . . . . . . . . 1 . . . . . 2 . . . . . 2 . . . . Alerts 6 | . . . . . . . . . . . . . . 2 1 . . . . . . 2 . . . 1 Weapon Failures 6 | . . . . . . . . . . 1 . 1 . 1 . 1 . . . . . 1 . . . 1 Overload Shots . | . . . . . . . . . . . . . . . . . . . . . . . . . . . Overflow Damage 953 | . 28 23 65 81 . 12 42 . . . . 85 . 119 . 111 . 45 . . . 43 . 16 46 237 Projectiles 382 | . . 23 5 14 . . . . . . . 15 . 26 . . . 18 . . . 43 . 16 46 176 Explosions 306 | . 28 . 60 67 . 12 10 . . . . . . 93 . 9 . 27 . . . . . . . . Melee 265 | . . . . . . . 32 . . . . 70 . . . 102 . . . . . . . . . 61 Knockbacks 68 | . . 1 1 8 . . 7 . . . . 1 . . . . . . . . 1 21 . 4 2 22 Impact 1 | . . . . . . . . . . . . 1 . . . . . . . . . . . . . . Kinetic 63 | . . 1 1 8 . . 6 . . . . . . . . . . . . . 1 20 . 4 2 20 Secondary 4 | . . . . . . . 1 . . . . . . . . . . . . . . 1 . . . 2 Self-Inflicted Damage 771 | . 32 . . . . 48 . 62 . 126 . 82 . . . 104 . 285 . . 32 . . . . . Shots 32 | . 2 . . . . 1 . 3 . 5 . 4 . . . 5 . 11 . . 1 . . . . . Rammed 38 | . 1 9 14 2 . 1 2 . . 1 . . . . . 1 . . . . 3 . . . 2 2 Targets Rammed 41 | . 1 9 14 3 . 1 2 . . 1 . . . . . 1 . . . . 3 . 1 . 2 3 Kicked 1 | . . . . . . . . . . . . . . . . . . . . . . . 1 . . . Crushed 2 | . . . . 1 . . . . . . . . . . . . . . . . . . . . . 1 Highest Temperature 390 | . 32 208 206 162 . 81 54 90 22 182 150 211 226 229 216 390 6 351 12 9 . 264 . 162 184 300 Average Temperature 73 | . 10 91 36 56 . 40 23 33 10 50 86 56 100 65 82 137 4 99 5 6 . 91 . 69 71 89 Received Heat Transfer 3515 | . 135 72 147 144 . 36 198 252 45 292 36 147 . 42 30 777 27 306 9 138 . 361 54 150 9 108 Effects 4 | . . . . . . . . . . . . . . . . 4 . . . . . . . . . . Energy Bleed 2 | . . . . . . . . . . . . . . . . 2 . . . . . . . . . . Interference 1 | . . . . . . . . . . . . . . . . 1 . . . . . . . . . . Short Circuit 1 | . . . . . . . . . . . . . . . . 1 . . . . . . . . . . Siege Activations 4 | . . . . . . . . . . . . . . . . 1 . 1 . . . 1 . . 1 . Total Turns 107 | . . . . . . . . . . . . . . . . 51 . 21 . . . 11 . . 24 . Longest Duration 51 | . . . . . . . . . . . . . . . . 51 . 21 . . . 11 . . 24 . Martial Activations . | . . . . . . . . . . . . . . . . . . . . . . . . . . . Shielding Activations . | . . . . . . . . . . . . . . . . . . . . . . . . . . . Robots Disrupted . | . . . . . . . . . . . . . . . . . . . . . . . . . . . Combat Hostiles . | . . . . . . . . . . . . . . . . . . . . . . . . . . . Robots Corrupted 15 | . . . . . . . 2 . . . . 1 . . . 2 . . . . 1 . 2 2 . 5 Combat Hostiles 11 | . . . . . . . 2 . . . . . . . . . . . . . 1 . 1 2 . 5 Parts Fried 18 | . . . . . . . 2 . . . . . . . . 1 . . . . 1 . 2 4 . 8 Impact Corruptions 8 | . . . . . . . 2 . . . . 2 . . . 4 . . . . . . . . . . Robots Melted 16 | . . . . . . . . . 1 3 1 1 . . 1 6 . 3 . . . . . . . . Combat Hostiles 15 | . . . . . . . . . 1 3 1 1 . . 1 6 . 2 . . . . . . . . Parts Melted 94 | . . . . . . . . 14 1 19 3 13 . 3 2 24 4 8 . . . 1 2 . . . Heat Transferred 29905 | . . 703 433 450 . . 74 2738 592 4625 481 3478 . 1474 850 7146 600 4529 446 324 . 555 . 370 37 . Parts Sabotaged . | . . . . . . . . . . . . . . . . . . . . . . . . . . . Parts Stolen . | . . . . . . . . . . . . . . . . . . . . . . . . . . . Parts Stripped . | . . . . . . . . . . . . . . . . . . . . . . . . . . . Power Chain Reactions 1 | . . . . . . . . . . . . . . . . . . . . . 1 . . . . . Alert | -11 -10 -10 -9 -9 -9 -8 -8 -8 -8 -8 -7 -7 -7 -7 -6 -6 -5 -5 -4 -4 -4 -4 -3 -3 -2 -1 ------- Run | Yrd Mat Min Mat Min Exi Min Mat Gar Mat Gar Fac Gar Fac Gar Fac Gar Fac Gar Fac Gar Fac Gar Res Gar Res Acc Maximum Alert Level 4 | . 1 . 2 1 . . 1 4 2 4 2 3 2 2 . 3 2 4 3 2 2 2 1 2 . . Low Security (%) 35 | 100 98 100 12 4 . 100 73 . . . . . . 30 100 22 . . . . 68 53 33 61 100 100 Level 1 26 | . 1 . 51 95 . . 26 14 . 4 25 34 85 62 . 12 . 10 15 76 10 18 66 35 . . Level 2 21 | . . . 35 . . . . 21 100 26 74 53 14 7 . 30 100 40 24 23 21 27 . 2 . . Level 3 11 | . . . . . . . . 46 . 41 . 11 . . . 34 . 35 60 . . . . . . . Level 4 3 | . . . . . . . . 17 . 27 . . . . . . . 13 . . . . . . . . Level 5 . | . . . . . . . . . . . . . . . . . . . . . . . . . . . High Security . | . . . . . . . . . . . . . . . . . . . . . . . . . . . Max Security . | . . . . . . . . . . . . . . . . . . . . . . . . . . . Peak Influence 1451 | 5 200 57 493 391 . 110 338 1199 633 1195 627 812 426 505 70 1053 552 1451 832 665 494 562 315 417 195 189 Initial 761 | . . 57 . 182 . . 1 219 584 398 627 205 426 159 70 37 552 289 761 209 348 11 315 111 195 87 Average 366 | . 62 8 334 280 . 40 107 768 593 837 483 521 330 283 11 514 496 731 669 355 148 211 235 221 86 85 Influence Increases 13950 | 5 306 106 1273 606 . 249 930 1100 209 887 43 767 . 506 117 1152 72 1602 135 736 292 757 24 606 501 969 Destroy 0b10 Robot/C 6840 | . 160 80 760 360 . 160 620 620 120 520 20 420 . 100 40 500 40 620 80 160 120 300 20 300 200 520 Destroy 0b10 Robot/NC 295 | 5 45 15 60 20 . . 25 . . . . 10 . . . 15 . 30 5 30 5 5 . . 5 20 Destroy Leader 1028 | . 42 10 214 70 . 30 158 30 30 30 10 30 . 20 20 30 20 40 10 10 10 30 . 40 52 92 Allied During Kill 612 | . . . . . . . 3 75 4 . 10 5 . 23 29 20 4 74 15 101 51 6 2 29 109 52 Successful Hack 343 | . . . 56 . . . 40 7 8 7 . 14 . 14 26 14 . 14 . 14 . 28 . 14 39 48 Select Force Hacks 30 | . . . . . . . . . 30 . . . . . . . . . . . . . . . . . Disable Machine 510 | . 30 . 60 60 . 45 30 . . . . . . 45 . 15 . . 15 30 60 . . 15 15 90 Anti-Garrison Action 2800 | . . . . . . . . 300 . 250 . 200 . 250 . 400 . 750 . 200 . 300 . 150 . . Destroy Structure 1072 | . 29 1 78 51 . 14 54 38 2 20 3 58 . 54 2 98 8 44 10 146 46 58 2 28 81 147 Partial Spotted 15 | . . . . . . . . . . 15 . . . . . . . . . . . . . . . . Lose Combat Pursuer 405 | . . . 45 45 . . . 30 15 45 . 30 . . . 60 . 30 . 45 . 30 . 30 . . Influence Decreases 13865 | 5 157 255 804 757 318 244 597 239 795 305 944 249 584 599 199 152 711 565 1287 370 940 212 437 408 702 1030 Entered New Map 5068 | . . 92 . 287 318 . 4 119 615 215 568 89 386 69 65 16 501 125 690 90 317 6 247 38 152 59 Time Decay 4588 | 5 157 163 654 470 . 244 443 . 160 . 286 . 198 . 114 . 130 . 262 . 275 . 150 . 400 477 Lost Part 550 | . . . . . . . . 20 . 50 10 80 . . . 20 . 140 10 10 . 40 40 90 . 40 Lost Ally 2060 | . . . . . . . . 100 20 40 80 80 . 80 20 116 80 300 50 270 48 166 . 280 150 180 Purge Threat 1599 | . . . 150 . . . 150 . . . . . . 450 . . . . 275 . 300 . . . . 274 Squads Dispatched 46 | . 3 . 4 . . 1 7 . 5 . 2 . . . 3 . 2 . 4 . 2 . 2 . 4 7 Investigation 12 | . 1 . 2 . . 1 3 . 2 . . . . . 1 . . . 1 . . . 1 . . . Extermination 9 | . . . . . . . . . . . 1 . . . 1 . . . 1 . 1 . . . 2 3 Reinforcement 16 | . 2 . 2 . . . 3 . . . . . . . 1 . . . 1 . 1 . . . 2 4 Assault 1 | . . . . . . . . . . . 1 . . . . . . . . . . . . . . . Garrison 8 | . . . . . . . 1 . 3 . . . . . . . 2 . 1 . . . 1 . . . Intercept . | . . . . . . . . . . . . . . . . . . . . . . . . . . . Searches Triggered . | . . . . . . . . . . . . . . . . . . . . . . . . . . . Unchained Authorized 1 | . . . . . . . . . . . . . . . . . . . . . 1 . . . . . Construction Impeded 2 | . . . 1 . . . 1 . . . . . . . . . . . . . . . . . . . Haulers Reinforced 1 | . . . . . . . . . . . . . . . . . . . . . . . . . . 1 Active Scanning Responses . | . . . . . . . . . . . . . . . . . . . . . . . . . . . Cargo Convoy Interrupts 1 | . . . . . . . . . . . . . . . . . . . . . . . . . 1 . Alert ID Control Effect 86 | . . . . . . . . . . . 1 1 1 15 3 10 . 7 2 18 . 6 2 7 7 6 Stealth | -11 -10 -10 -9 -9 -9 -8 -8 -8 -8 -8 -7 -7 -7 -7 -6 -6 -5 -5 -4 -4 -4 -4 -3 -3 -2 -1 --------- Run | Yrd Mat Min Mat Min Exi Min Mat Gar Mat Gar Fac Gar Fac Gar Fac Gar Fac Gar Fac Gar Fac Gar Res Gar Res Acc Distress Signals 15 | . 2 . 2 . . . 6 . 1 . . . . . 1 . . 1 . . 2 . . . . . Communications Jammed 378 | . . . . . . . . . . . . 8 1 . . . . . . . . . . . 353 16 Distress Signals 373 | . . . . . . . . . . . . 8 . . . . . . . . . . . . 352 13 Times Spotted 589 | . 15 4 59 19 . 7 42 34 13 26 4 24 3 21 9 42 4 48 17 29 18 38 9 35 28 41 Peak Tracking Total 9 | . 5 2 7 3 . 3 7 5 4 4 1 4 1 4 2 6 2 9 3 7 4 8 5 6 5 5 Tactical Retreats 21 | . . . 2 3 . . . 2 1 2 . 2 . . . 2 . 2 . 2 . 2 . 1 . . Traps | -11 -10 -10 -9 -9 -9 -8 -8 -8 -8 -8 -7 -7 -7 -7 -6 -6 -5 -5 -4 -4 -4 -4 -3 -3 -2 -1 ------- Run | Yrd Mat Min Mat Min Exi Min Mat Gar Mat Gar Fac Gar Fac Gar Fac Gar Fac Gar Fac Gar Fac Gar Res Gar Res Acc Traps Triggered 77 | . 1 1 2 . . . . 7 . 8 1 5 . 8 . 5 . 11 2 6 3 7 1 7 . 2 Indirectly . | . . . . . . . . . . . . . . . . . . . . . . . . . . . Trap Hack Attempts 4 | . . . . . . . . . . . . . . . . . . 4 . . . . . . . . Triggered . | . . . . . . . . . . . . . . . . . . . . . . . . . . . Disarmed 1 | . . . . . . . . . . . . . . . . . . 1 . . . . . . . . Reprogrammed . | . . . . . . . . . . . . . . . . . . . . . . . . . . . Reused . | . . . . . . . . . . . . . . . . . . . . . . . . . . . Traps Extracted . | . . . . . . . . . . . . . . . . . . . . . . . . . . . Installed . | . . . . . . . . . . . . . . . . . . . . . . . . . . . Triggered . | . . . . . . . . . . . . . . . . . . . . . . . . . . . Machines | -11 -10 -10 -9 -9 -9 -8 -8 -8 -8 -8 -7 -7 -7 -7 -6 -6 -5 -5 -4 -4 -4 -4 -3 -3 -2 -1 ---------- Run | Yrd Mat Min Mat Min Exi Min Mat Gar Mat Gar Fac Gar Fac Gar Fac Gar Fac Gar Fac Gar Fac Gar Res Gar Res Acc Machines Disabled 62 | . 2 . 4 4 . 3 2 3 . 3 . 1 . 6 . 4 . 5 1 5 4 4 . 4 1 6 Max in Single Turn 4 | . 1 . 2 4 . 2 1 1 . 1 . 1 . 1 . 1 . 1 . 1 1 1 . 1 1 1 Garrison Access 2 | . . . . . . . . . . . . . . . . . . . . . . . . . 1 1 Garrison Relay 27 | . . . . . . . . 3 . 3 . 1 . 3 . 3 . 5 . 3 . 3 . 3 . . Machines Repaired . | . . . . . . . . . . . . . . . . . . . . . . . . . . . Machines Dismantled 4 | . . . . . . . . . . . . . . . . 1 . . . 1 . . . . . 2 Machines Sabotaged . | . . . . . . . . . . . . . . . . . . . . . . . . . . . Overloaded Fab Kills . | . . . . . . . . . . . . . . . . . . . . . . . . . . . Hacking | -11 -10 -10 -9 -9 -9 -8 -8 -8 -8 -8 -7 -7 -7 -7 -6 -6 -5 -5 -4 -4 -4 -4 -3 -3 -2 -1 --------- Run | Yrd Mat Min Mat Min Exi Min Mat Gar Mat Gar Fac Gar Fac Gar Fac Gar Fac Gar Fac Gar Fac Gar Res Gar Res Acc Machines Accessed 91 | . 3 1 16 . . 1 11 4 1 2 5 2 2 1 2 2 1 3 3 3 4 4 1 3 7 9 Terminals 60 | . 3 . 10 . . 1 6 4 . 2 2 2 . 1 . 2 . 3 . 3 1 4 . 3 6 7 Fabricators 4 | . . . . . . . . . . . 1 . . . . . . . . . 2 . . . . 1 Repair Stations 6 | . . . 2 . . . 1 . . . . . 1 . 1 . . . 1 . . . . . . . Recycling Units 4 | . . . 2 . . . 1 . . . 1 . . . . . . . . . . . . . . . Scanalyzers 5 | . . . 2 . . . 2 . . . . . . . . . . . 1 . . . . . . . Garrison Access 11 | . . . . . . . 1 . 1 . 1 . 1 . 1 . 1 . 1 . 1 . 1 . 1 1 Total Hacks 221 | . 7 1 61 . . 2 41 9 3 3 10 5 4 2 7 4 2 4 5 3 10 7 1 4 11 15 Successful 103 | . 1 1 34 . . . 26 1 3 1 3 1 1 1 6 1 1 1 1 1 3 2 1 2 4 7 Failed 117 | . 6 . 27 . . 2 14 8 . 2 7 4 3 1 1 3 1 3 4 2 7 5 . 2 7 8 Catastrophic 29 | . 1 . 6 . . 1 1 1 . 1 . . 1 1 . 3 . 1 1 1 3 2 . 1 2 2 Database Lockouts 1 | . . . . . . . 1 . . . . . . . . . . . . . . . . . . . Manual 78 | . 5 . 24 . . 2 19 . 2 . 5 . 1 1 4 . 1 . 1 . . 1 . . 5 7 Terminals 131 | . 7 . 32 . . 2 20 9 . 3 4 5 . 2 . 4 . 4 . 3 5 7 . 4 9 11 Fabricators 8 | . . . . . . . . . . . 2 . . . . . . . . . 4 . . . . 2 Repair Stations 17 | . . . 9 . . . 2 . . . . . 2 . 3 . . . 1 . . . . . . . Recycling Units 11 | . . . 5 . . . 4 . . . 2 . . . . . . . . . . . . . . . Scanalyzers 29 | . . . 15 . . . 12 . . . . . . . . . . . 2 . . . . . . . Garrison Access 24 | . . . . . . . 3 . 3 . 2 . 2 . 4 . 2 . 2 . 1 . 1 . 2 2 Terminal Hacks 35 | . 1 1 7 . . . 10 1 . 1 . 1 . 1 . 1 . 1 . 1 2 2 . 2 2 1 Robot Analysis 4 | . 1 . 1 . . . 2 . . . . . . . . . . . . . . . . . . . Prototype ID Bank 2 | . . . 2 . . . . . . . . . . . . . . . . . . . . . . . Open Door 4 | . . 1 . . . . . 1 . 1 . . . . . . . . . . . . . 1 . . Level Access Points 2 | . . . . . . . . . . . . . . . . . . . . . . . . . 1 1 Branch Access Points 1 | . . . 1 . . . . . . . . . . . . . . . . . . . . . . . Emergency Access Points 6 | . . . . . . . . . . . . 1 . . . 1 . 1 . 1 . 1 . 1 . . Scanalyzer Index 2 | . . . 1 . . . 1 . . . . . . . . . . . . . . . . . . . Garrison Index 1 | . . . . . . . 1 . . . . . . . . . . . . . . . . . . . Unreport Threat 4 | . . . 1 . . . 1 . . . . . . . . . . . . . 2 . . . . . Locate Traps 1 | . . . . . . . 1 . . . . . . . . . . . . . . . . . . . Hauler Manifests 1 | . . . . . . . 1 . . . . . . . . . . . . . . . . . . . Registered Components 2 | . . . 1 . . . 1 . . . . . . . . . . . . . . . . . . . Zone Layout 3 | . . . . . . . 2 . . . . . . . . . . . . . . . . . 1 . Patrol Navigation 2 | . . . . . . . . . . . . . . 1 . . . . . . . 1 . . . . Fabricator Hacks 2 | . . . . . . . . . . . 1 . . . . . . . . . . . . . . 1 Network Status 2 | . . . . . . . . . . . 1 . . . . . . . . . . . . . . 1 Repair Station Hacks 8 | . . . 4 . . . 2 . . . . . . . 2 . . . . . . . . . . . Scan Component 4 | . . . 2 . . . 1 . . . . . . . 1 . . . . . . . . . . . Repair 4 | . . . 2 . . . 1 . . . . . . . 1 . . . . . . . . . . . Recycling Unit Hacks 1 | . . . . . . . 1 . . . . . . . . . . . . . . . . . . . Retrieve Components 1 | . . . . . . . 1 . . . . . . . . . . . . . . . . . . . Scanalyzer 19 | . . . 12 . . . 7 . . . . . . . . . . . . . . . . . . . Insert Component 7 | . . . 4 . . . 3 . . . . . . . . . . . . . . . . . . . Analyze 9 | . . . 5 . . . 4 . . . . . . . . . . . . . . . . . . . Retrieve Study 3 | . . . 3 . . . . . . . . . . . . . . . . . . . . . . . Garrison Access Hacks 13 | . . . . . . . 1 . 1 . 1 . 1 . 1 . 1 . 1 . 1 . 1 . 2 2 Unlock Access 9 | . . . . . . . 1 . 1 . 1 . 1 . 1 . 1 . 1 . 1 . 1 . . . Seal Access 2 | . . . . . . . . . . . . . . . . . . . . . . . . . 1 1 Coupler Status 2 | . . . . . . . . . . . . . . . . . . . . . . . . . 1 1 Unauthorized Hacks 25 | . . . 11 . . . 5 . 2 . 1 . . . 3 . . . . . . . . . . 3 Terminals 16 | . . . 9 . . . 3 . . . 1 . . . . . . . . . . . . . . 3 Botnet 7 | . . . 2 . . . 2 . . . 1 . . . . . . . . . . . . . . 2 Disrupt 2 | . . . . . . . 1 . . . . . . . . . . . . . . . . . . 1 Operators 1 | . . . 1 . . . . . . . . . . . . . . . . . . . . . . . Skim 6 | . . . 6 . . . . . . . . . . . . . . . . . . . . . . . Fabricators . | . . . . . . . . . . . . . . . . . . . . . . . . . . . Repair Stations 1 | . . . . . . . . . . . . . . . 1 . . . . . . . . . . . Mechanics 1 | . . . . . . . . . . . . . . . 1 . . . . . . . . . . . Recycling Units 3 | . . . 2 . . . 1 . . . . . . . . . . . . . . . . . . . Reject 3 | . . . 2 . . . 1 . . . . . . . . . . . . . . . . . . . Scanalyzers . | . . . . . . . . . . . . . . . . . . . . . . . . . . . Garrison Access 5 | . . . . . . . 1 . 2 . . . . . 2 . . . . . . . . . . . Reprogram 3 | . . . . . . . 1 . 1 . . . . . 1 . . . . . . . . . . . Intercept 1 | . . . . . . . . . . . . . . . 1 . . . . . . . . . . . Eject 1 | . . . . . . . . . 1 . . . . . . . . . . . . . . . . . Data Cores Recovered 2 | . . . 1 . . . . . . . 1 . . . . . . . . . . . . . . . Used . | . . . . . . . . . . . . . . . . . . . . . . . . . . . Hacking Detections 82 | . 3 . 15 . . 1 10 4 1 1 5 2 2 1 2 2 1 2 3 2 4 4 . 1 7 9 Full Trace Events 9 | . . . 2 . . 1 2 1 . . . 1 . . . 1 . . . . . 1 . . . . Feedback Events . | . . . . . . . . . . . . . . . . . . . . . . . . . . . Feedback Blocked . | . . . . . . . . . . . . . . . . . . . . . . . . . . . Robot Schematics Acquired . | . . . . . . . . . . . . . . . . . . . . . . . . . . . Robots Built . | . . . . . . . . . . . . . . . . . . . . . . . . . . . Authchips . | . . . . . . . . . . . . . . . . . . . . . . . . . . . Time . | . . . . . . . . . . . . . . . . . . . . . . . . . . . Total Robot Build Rating . | . . . . . . . . . . . . . . . . . . . . . . . . . . . Part Schematics Acquired 5 | . . . 4 . . . 1 . . . . . . . . . . . . . . . . . . . Parts Built . | . . . . . . . . . . . . . . . . . . . . . . . . . . . Authchips . | . . . . . . . . . . . . . . . . . . . . . . . . . . . Time . | . . . . . . . . . . . . . . . . . . . . . . . . . . . Total Part Build Rating . | . . . . . . . . . . . . . . . . . . . . . . . . . . . Part Studies Acquired 3 | . . . 3 . . . . . . . . . . . . . . . . . . . . . . . Parts Repaired 4 | . . . 2 . . . 1 . . . . . . . 1 . . . . . . . . . . . Time 118 | . . . 64 . . . 32 . . . . . . . 22 . . . . . . . . . . . Parts Recycled . | . . . . . . . . . . . . . . . . . . . . . . . . . . . Recycled Matter . | . . . . . . . . . . . . . . . . . . . . . . . . . . . Retrieved Matter . | . . . . . . . . . . . . . . . . . . . . . . . . . . . Retrieved Components 9 | . . . . . . . 9 . . . . . . . . . . . . . . . . . . . Parts Scanalyzed 5 | . . . 4 . . . 1 . . . . . . . . . . . . . . . . . . . Part Schematics Acquired 5 | . . . 4 . . . 1 . . . . . . . . . . . . . . . . . . . Parts Damaged 1 | . . . . . . . 1 . . . . . . . . . . . . . . . . . . . Bothacking | -11 -10 -10 -9 -9 -9 -8 -8 -8 -8 -8 -7 -7 -7 -7 -6 -6 -5 -5 -4 -4 -4 -4 -3 -3 -2 -1 ------------ Run | Yrd Mat Min Mat Min Exi Min Mat Gar Mat Gar Fac Gar Fac Gar Fac Gar Fac Gar Fac Gar Fac Gar Res Gar Res Acc Used RIF Installer 13 | . . . . . . . . 2 . 2 . 2 . 2 . 1 . 1 . 1 . 1 . 1 . . Coupler Efficiency 1 | . . . . . . . . . . . . 1 . . . . . . . . . . . . . . Hotswap 1 | . . . . . . . . 1 . . . . . . . . . . . . . . . . . . Code Merge 1 | . . . . . . . . . . 1 . . . . . . . . . . . . . . . . Signal Jammer 1 | . . . . . . . . . . . . . . . . . . . . . . . . 1 . . Zone Cloak 2 | . . . . . . . . . . . . 1 . . . 1 . . . . . . . . . . Watcher Feeds 1 | . . . . . . . . . . . . . . 1 . . . . . . . . . . . . Patrol Navigation 1 | . . . . . . . . . . . . . . . . . . 1 . . . . . . . . Alert ID Control 1 | . . . . . . . . . . 1 . . . . . . . . . . . . . . . . Program Shield 1 | . . . . . . . . . . . . . . 1 . . . . . . . . . . . . Autooverride 2 | . . . . . . . . . . . . . . . . . . . . 1 . 1 . . . . Robots Hacked 133 | . . . . . 4 . . . 1 . 2 6 2 11 2 5 2 12 5 12 5 17 2 16 9 20 Non-combat 19 | . . . . . 3 . . . . . 1 1 1 1 1 . . 1 2 . . . . . 3 5 Combat 114 | . . . . . 1 . . . 1 . 1 5 1 10 1 5 2 11 3 12 5 17 2 16 6 15 Autooverrided 21 | . . . . . . . . . . . . . . . . . . . . 1 . 2 2 6 2 8 Robot Hacks Applied 131 | . . . . . 4 . . . 1 . 3 6 2 16 3 5 2 13 7 11 6 16 . 12 8 16 parse_system 6 | . . . . . 4 . . . . . . . . 1 . . . . . 1 . . . . . . find_chute 2 | . . . . . . . . . . . . . . . 1 . . . 1 . . . . . . . drop_inventory 1 | . . . . . . . . . . . . . . . . . . . . . . . . . 1 . purge_threat 8 | . . . . . . . . . . . . . . 4 . . . . 2 . . . . . . 2 locate_traps 1 | . . . . . . . . . . . . . . . . . . . . . . . . . . 1 block_reporting 3 | . . . . . . . . . . . 1 . . . . . . . . . . . . . . 2 map_route 3 | . . . . . . . . . . . . . . . . . . . . . . . . . 2 1 find_garrison 3 | . . . . . . . . . . . 1 . . . 1 . . . . . 1 . . . . . focus_fire 1 | . . . . . . . . . . . . . . . . . . . . 1 . . . . . . scatter_targeting 1 | . . . . . . . . . . . . . . . . . . . . . 1 . . . . . mark_system 1 | . . . . . . . . . . . . . . . . . . . . 1 . . . . . . overload_power 1 | . . . . . . . . . . . . . . . . . . . . . . . . . . 1 amplify_resonance 1 | . . . . . . . . . . . . . . . . . . . . . . 1 . . . . wipe_record 1 | . . . . . . . . . . . . . . . . . . 1 . . . . . . . . reboot_system 4 | . . . . . . . . . . . . . . 2 . . . 1 . . . . . 1 . . overwrite_iff 36 | . . . . . . . . . . . . 1 . 4 . 2 1 6 2 3 3 9 . 2 . 3 streamctrl_high 4 | . . . . . . . . . . . . 2 . . . . . . . . . 2 . . . . formatsys_low 8 | . . . . . . . . . . . . . 1 1 . . . 1 1 . . . . . 1 3 formatsys_high 45 | . . . . . . . . . 1 . 1 3 1 4 1 3 1 4 1 5 1 4 . 9 4 2 formatsys_deep 1 | . . . . . . . . . . . . . . . . . . . . . . . . . . 1 Relay Couplers Released 109 | . . . . . . . . 9 4 15 . 7 . 12 . 9 . 18 . 9 . 12 . 11 1 2 Ejected 4 | . . . . . . . . . 4 . . . . . . . . . . . . . . . . . Machine Destruction 101 | . . . . . . . . 9 . 15 . 3 . 12 . 9 . 18 . 9 . 12 . 11 1 2 Programmers 4 | . . . . . . . . . . . . 4 . . . . . . . . . . . . . . Attached 49 | . . . . . . . . . 1 1 1 3 1 7 . 3 . 7 1 3 1 5 . 8 3 4 Merged Code Value 131 | . . . . . . . . . . 36 . . . 16 . . . 41 . 14 . 7 . 17 . . Fabnet Peak Effective % . | . . . . . . . . . . . . . . . . . . . . . . . . . . . Robots Rewired 30 | . . . . . . . . 7 . 3 . . . . . 2 . 7 1 8 . . . 2 . . Allies Hacked 2 | . . . . . . . . . . . . . . . . . . . . . . . . . . 2 Hacks Repelled . | . . . . . . . . . . . . . . . . . . . . . . . . . . . Allies | -11 -10 -10 -9 -9 -9 -8 -8 -8 -8 -8 -7 -7 -7 -7 -6 -6 -5 -5 -4 -4 -4 -4 -3 -3 -2 -1 -------- Run | Yrd Mat Min Mat Min Exi Min Mat Gar Mat Gar Fac Gar Fac Gar Fac Gar Fac Gar Fac Gar Fac Gar Res Gar Res Acc Total Allies 157 | . . . . . . . 1 7 2 3 1 6 2 9 4 7 2 20 5 19 4 17 2 18 7 21 Largest Group 8 | . . . . . . . 1 4 1 3 4 2 3 5 8 7 3 7 4 7 6 3 2 4 6 3 Highest-Rated Group 415 | . . . . . . . 15 159 39 76 108 32 71 145 231 202 156 229 208 415 363 113 113 254 329 316 Highest-Rated Ally 183 | . . . . . . . 15 40 39 31 32 29 32 32 32 85 81 80 116 116 95 56 64 99 180 183 Total Orders 62 | . . . . . . . . . . . . 3 1 6 1 7 3 6 4 8 12 . 6 5 . . STAY 34 | . . . . . . . . . . . . 2 . 2 . 3 2 2 . 4 12 . 4 3 . . FOLLOW 18 | . . . . . . . . . . . . 1 . 2 . 3 1 2 1 4 . . 2 2 . . AID 10 | . . . . . . . . . . . . . 1 2 1 1 . 2 3 . . . . . . . Ally Attacks 785 | . . . . . . . 4 70 6 2 4 19 7 68 30 46 10 64 24 108 26 44 13 73 89 78 Total Damage 22465 | . . . . . . . 72 1014 113 35 164 286 93 1416 538 1126 341 1828 850 4457 959 1135 398 2244 2314 3082 Kills 145 | . . . . . . . 2 16 2 . 1 1 1 15 4 11 . 16 6 25 4 6 2 7 12 14 Allies Corrupted 7 | . . . . . . . . . . . . 1 . . . . . . 1 . . . 1 1 1 2 Allies Melted 2 | . . . . . . . . 1 . . . 1 . . . . . . . . . . . . . . Intel | -11 -10 -10 -9 -9 -9 -8 -8 -8 -8 -8 -7 -7 -7 -7 -6 -6 -5 -5 -4 -4 -4 -4 -3 -3 -2 -1 ------- Run | Yrd Mat Min Mat Min Exi Min Mat Gar Mat Gar Fac Gar Fac Gar Fac Gar Fac Gar Fac Gar Fac Gar Res Gar Res Acc Active Infowar (turns) 5631 | . . . . . . . . . . . 309 1114 397 902 1 1099 246 268 18 . . . . . 299 978 Sensors 1324 | . . . . . . . . . . . . . 2 . . . 114 . 18 . . . . . 212 978 Terrain 299 | . . . . . . . . . . . . . . . . . . . . . . . . . 299 . Jamming 4219 | . . . . . . . . . . . 309 1114 395 902 . 1099 132 268 . . . . . . . . ECM 1 | . . . . . . . . . . . . . . . 1 . . . . . . . . . . . Robot Analysis Total 4 | . 1 . 1 . . . 2 . . . . . . . . . . . . . . . . . . . Derelict Logs Recovered 2 | . . 1 . 1 . . . . . . . . . . . . . . . . . . . . . . Drone Launches . | . . . . . . . . . . . . . . . . . . . . . . . . . . . Drone Recoveries . | . . . . . . . . . . . . . . . . . . . . . . . . . . . Exploration | -11 -10 -10 -9 -9 -9 -8 -8 -8 -8 -8 -7 -7 -7 -7 -6 -6 -5 -5 -4 -4 -4 -4 -3 -3 -2 -1 ------------- Run | Yrd Mat Min Mat Min Exi Min Mat Gar Mat Gar Fac Gar Fac Gar Fac Gar Fac Gar Fac Gar Fac Gar Res Gar Res Acc Turns Passed 29855 | 110 462 1107 2737 1192 455 804 1619 1587 333 1746 621 1355 401 1529 656 1836 268 2518 565 1565 808 1376 312 1013 1036 1844 Spaces Moved 13452 | 59 207 624 1338 526 225 386 579 613 95 703 283 425 95 789 323 848 131 987 334 925 332 634 150 470 488 883 Core 4 | 4 . . . . . . . . . . . . . . . . . . . . . . . . . . Treads 8091 | 55 207 624 1338 526 225 386 579 613 95 703 283 357 . . . 176 131 469 . . 2 1 . . 438 883 Legs 238 | . . . . . . . . . . . . . . . . . . 238 . . . . . . . . Wheels 5119 | . . . . . . . . . . . . 68 95 789 323 672 . 280 334 925 330 633 150 470 50 . Hover . | . . . . . . . . . . . . . . . . . . . . . . . . . . . Flight . | . . . . . . . . . . . . . . . . . . . . . . . . . . . Fastest Speed 50 | 50 160 160 160 200 200 200 200 200 200 200 200 145 145 145 160 145 165 130 110 110 170 150 130 130 160 156 Average Speed 171 | 152 160 160 171 200 200 200 200 200 200 200 200 227 159 147 163 160 165 189 129 125 170 163 149 147 161 157 Slowest Speed 400 | 160 160 160 200 200 200 200 200 200 200 200 200 400 160 160 175 330 165 240 130 170 320 320 150 170 170 160 Overloaded Moves . | . . . . . . . . . . . . . . . . . . . . . . . . . . . Propulsion Burnouts . | . . . . . . . . . . . . . . . . . . . . . . . . . . . Robots Hopped . | . . . . . . . . . . . . . . . . . . . . . . . . . . . Potential Cave-ins 10 | . . . . . . . . . . . . . . . . . . . . . . . . . 10 . Cave-ins Triggered . | . . . . . . . . . . . . . . . . . . . . . . . . . . . Exploration Rate (%) 50 | 5 50 94 97 98 64 97 53 80 14 74 10 53 3 84 15 84 3 73 18 83 9 82 3 51 22 42 Regions Visited 26 Branch Regions 4 Pre-discovered Areas 4 | . . . 3 1 . . . . . . . . . . . . . . . . . . . . . . Known Exits Taken 11 | . . . 1 . . . 1 . 1 . 1 . 1 . 1 . 1 . 1 . 1 . 1 . 1 . Unknown Exits Taken 6 | 1 1 1 . 1 1 1 . . . . . . . . . . . . . . . . . . . . Scrap Searched 3 | . . 1 . 1 . 1 . . . . . . . . . . . . . . . . . . . . Spaces Dug 133 | . 15 . 41 8 . 11 . . . . 3 20 . . 3 . . 5 . 2 1 . . . 18 6 Terrain Destroyed 534 | . 31 . 77 61 . 20 46 7 . 13 3 53 . 14 3 83 . 16 . 3 5 17 1 6 33 42 Melee 3 | . . . . . . . . . . . 3 . . . . . . . . . . . . . . . Projectile 120 | . 1 . 4 3 . . . . . . . 2 . . 3 . . . . 3 5 17 1 6 33 42 AOE 411 | . 30 . 73 58 . 20 46 7 . 13 . 51 . 14 . 83 . 16 . . . . . . . . Terrain Rammed . | . . . . . . . . . . . . . . . . . . . . . . . . . . . Walls Destroyed . | . . . . . . . . . . . . . . . . . . . . . . . . . . . Machines Disabled . | . . . . . . . . . . . . . . . . . . . . . . . . . . . Actions | -11 -10 -10 -9 -9 -9 -8 -8 -8 -8 -8 -7 -7 -7 -7 -6 -6 -5 -5 -4 -4 -4 -4 -3 -3 -2 -1 --------- Run | Yrd Mat Min Mat Min Exi Min Mat Gar Mat Gar Fac Gar Fac Gar Fac Gar Fac Gar Fac Gar Fac Gar Res Gar Res Acc Total 18313 | 74 273 700 1619 589 230 401 943 891 201 910 322 684 340 1063 424 1131 180 1485 452 1240 549 857 219 697 680 1159 Wait 2077 | 3 15 16 104 12 . . 254 107 75 68 1 102 234 76 51 88 23 227 82 105 161 42 36 48 88 59 Move 13428 | 58 206 623 1337 525 224 385 578 612 94 702 282 424 94 788 322 847 131 986 333 924 332 633 150 469 487 882 Hop . | . . . . . . . . . . . . . . . . . . . . . . . . . . . Pick Up 203 | 6 7 11 23 3 . 1 11 4 . 12 5 13 2 12 4 8 7 14 3 8 3 13 6 8 9 10 Fast Attach 133 | 6 2 1 6 . . . 7 . . 4 6 11 . 9 10 13 . 14 5 5 3 8 2 9 9 3 Attach 81 | . . . 3 . . . 8 2 . 6 1 8 . . . 2 2 11 3 1 1 10 5 6 3 9 Detach 49 | . 1 . 3 . . . 4 . . 4 1 5 . 1 3 . . 5 2 3 1 7 . 4 . 5 Swap 358 | . 5 6 25 4 2 4 9 21 3 17 6 17 6 38 4 37 5 25 4 19 11 18 1 15 17 39 Drop 233 | . 1 11 24 3 . 1 15 7 . 10 8 14 1 21 10 19 6 13 5 14 7 9 3 6 15 10 Fire 1211 | 1 35 23 80 39 . 9 49 43 27 68 6 82 3 71 20 82 3 109 15 93 19 81 15 78 49 111 Melee 55 | . . . . . 4 . 6 . 1 6 5 1 . 2 . 12 2 6 . 7 . . . . . 3 Ram 1 | . . . . . . . . . . . . . . . . . . . . . 1 . . . . . Kick 1 | . . . . . . . . . . . . . . . . . . . . . . . 1 . . . Crush 39 | . 1 9 14 3 . 1 2 . . 1 . . . . . 1 . . . . 2 . . . 2 3 Escape Stasis 268 | . . . . . . . . 10 . 12 . 6 . 44 . 14 . 60 . 48 8 34 . 32 . . Rewire 134 | . . . . . . . . 85 1 . 1 1 . 1 . . 1 11 . 5 . 2 . 22 1 3 Trap 4 | . . . . . . . . . . . . . . . . . . 4 . . . . . . . . Miscellaneous 38 | . . . . . . . . . . . . . . . . 8 . . . 8 . . . . . 22 Route ------- -11/Scrapyard -10/Materials -10/Mines (discovered 2 exits: *Mat x2) -9/Materials (discovered 5 exits: *Mat x3 / *Min x2) -9/Mines (discovered 3 exits: *Mat x2 / [*Exi]) -9/Exiles (discovered 2 exits: *Min x2) -8/Mines (discovered 2 exits: *Mat x2) -8/Materials (discovered 5 exits: *Fac x2 / *Sto x2 / Gar) -8/Garrison (discovered 3 exits: *Mat x3) -8/Materials -8/Garrison (discovered 3 exits: *Fac x3) -7/Factory -7/Garrison -7/Factory -7/Garrison (discovered 3 exits: *Fac x3) -6/Factory (discovered 2 exits: [*Low] / Gar) -6/Garrison (discovered 3 exits: *Fac x3) -5/Factory -5/Garrison (discovered 3 exits: *Fac x3) -4/Factory -4/Garrison (discovered 3 exits: *Fac x3) -4/Factory (discovered 3 exits: [*Upp] / [*Ext] / Gar) -4/Garrison (discovered 3 exits: *Res x3) -3/Research -3/Garrison -2/Research (discovered 3 exits: *Acc x3) -1/Access To Epsilon Eridani History --------- Turn | Location | Event 2 | -11/Scrapyard | Discovered new exit (range 16) 111 | -11/Scrapyard | Entered Materials 194 | -10/Materials | Discovered new exit (range 12) 304 | -10/Materials | Build established: Mutant 573 | -10/Materials | Entered Mines 574 | -10/Mines | Assembled infested the area 582 | -10/Mines | Met a Derelict bent on vengeance 737 | -10/Mines | Discovered new exit (range 5) 772 | -10/Mines | Discovered new exit (range 11) 1680 | -10/Mines | Entered Materials 1680 | -9/Materials | Evolved 2 slots: Propulsion x1, Utility x1 2232 | -9/Materials | Discovered new exit (range 16) 2531 | -9/Materials | Discovered new exit (range 8) 2745 | -9/Materials | Discovered new exit (range 5) 2879 | -9/Materials | Identified exit to Mines 2986 | -9/Materials | Discovered new exit (range 7) 3245 | -9/Materials | Learned location of Zion (-6) 3384 | -9/Materials | Discovered new exit (range 6) 3442 | -9/Materials | Learned Storage stockpile data 3488 | -9/Materials | Learned Storage emergency access door positions 3542 | -9/Materials | Learned location of Storage (-8) 4365 | -9/Materials | Repaired Imp. Light Cannon+ 4398 | -9/Materials | Repaired Imp. Light Cannon+ 4417 | -9/Materials | Entered Mines 4619 | -9/Mines | Discovered new exit (range 12) 4722 | -9/Mines | Found a damaged Exp. Sensor Array with a note attached 4727 | -9/Mines | Found Prototype Device 4746 | -9/Mines | Discovered new exit (range 15) 5599 | -9/Mines | Deemed a non-threat by the Exiles lab entrance 5601 | -9/Mines | Discovered new exit (range 5) 5609 | -9/Mines | Entered Exiles 5641 | -9/Exiles | Discovered new exit (range 15) 5665 | -9/Exiles | Met 8R-AWN 5694 | -9/Exiles | Met EX-HEX 5753 | -9/Exiles | Met EX-BIN 5816 | -9/Exiles | Met EX-DEC 6039 | -9/Exiles | Discovered new exit (range 14) 6064 | -9/Exiles | Entered Mines 6597 | -8/Mines | Discovered new exit (range 7) 6746 | -8/Mines | Discovered new exit (range 14) 6868 | -8/Mines | Entered Materials 6868 | -8/Materials | Evolved 2 slots: Utility x1, Weapon x1 6869 | -8/Materials | Identified exit to Storage 7180 | -8/Materials | Central database locked down 7287 | -8/Materials | Discovered new exit (range 17) 7748 | -8/Materials | Repaired Imp. Light Cannon+ 7925 | -8/Materials | Identified Exp. Sensor Array 8096 | -8/Materials | Build established: Gunner 8125 | -8/Materials | Discovered new exit (range 15) 8240 | -8/Materials | Found Prototype Launcher 8240 | -8/Materials | Identified Rocket Array 8245 | -8/Materials | Found Rocket Array 8471 | -8/Materials | Identified exit to Garrison 8471 | -8/Materials | Garrison activated, responded to threat 8487 | -8/Materials | Entered Garrison 8487 | -8/Garrison | Accompanied by 1 ally 8530 | -8/Garrison | Triggered checkpoint 8550 | -8/Garrison | Build established: Tank 8576 | -8/Garrison | Garrison Relay disabled 8745 | -8/Garrison | Triggered checkpoint 8871 | -8/Garrison | Triggered checkpoint 8958 | -8/Garrison | Garrison Relay disabled 9034 | -8/Garrison | Build established: Scavenger-Tank 9213 | -8/Garrison | Installed Relay Interface Framework 9227 | -8/Garrison | Discovered new exit (range 12) 9317 | -8/Garrison | Triggered checkpoint 9445 | -8/Garrison | Triggered checkpoint 9545 | -8/Garrison | Discovered new exit (range 14) 9777 | -8/Garrison | Triggered checkpoint 9779 | -8/Garrison | Triggered checkpoint 9917 | -8/Garrison | Expanded RIF knowledge: Hotswap 10013 | -8/Garrison | Garrison Relay disabled 10042 | -8/Garrison | Discovered new exit (range 8) 10074 | -8/Garrison | Entered Materials 10074 | -8/Materials | Accompanied by 1 ally 10207 | -8/Materials | Garrison activated, responded to threat 10355 | -8/Materials | Identified exit to Garrison 10407 | -8/Materials | Entered Garrison 10407 | -8/Garrison | Accompanied by 2 allies 10539 | -8/Garrison | Expanded RIF knowledge: Alert ID Control 10617 | -8/Garrison | Triggered checkpoint 10661 | -8/Garrison | Build established: Tank 10683 | -8/Garrison | Garrison Relay disabled 10897 | -8/Garrison | Triggered checkpoint 10944 | -8/Garrison | Triggered checkpoint 11017 | -8/Garrison | Discovered new exit (range 10) 11060 | -8/Garrison | Expanded RIF knowledge: Code Merge 11133 | -8/Garrison | Triggered checkpoint 11171 | -8/Garrison | Build established: Bothacker-Gunner 11639 | -8/Garrison | Triggered checkpoint 11680 | -8/Garrison | Garrison Relay disabled 11743 | -8/Garrison | Discovered new exit (range 12) 12007 | -8/Garrison | Triggered checkpoint 12032 | -8/Garrison | Garrison Relay disabled 12067 | -8/Garrison | Build established: Bothacker-Mutant 12102 | -8/Garrison | Discovered new exit (range 13) 12153 | -8/Garrison | Entered Factory 12153 | -7/Factory | Accompanied by 3 allies 12153 | -7/Factory | Evolved 2 slots: Utility x2 12443 | -7/Factory | Build established: Bothacker-Tank 12520 | -7/Factory | Allied Derelicts emerged from ambush trap array 12553 | -7/Factory | First assault squad dispatched 12759 | -7/Factory | Identified exit to Garrison 12774 | -7/Factory | Entered Garrison 12838 | -7/Garrison | Triggered checkpoint 12901 | -7/Garrison | Garrison Relay disabled 13056 | -7/Garrison | Expanded RIF knowledge: Zone Cloak 13246 | -7/Garrison | Triggered checkpoint 13246 | -7/Garrison | Triggered checkpoint 13292 | -7/Garrison | Lost 3 parts (2n1w) 13368 | -7/Garrison | Triggered checkpoint 13437 | -7/Garrison | Build established: Botlord-Tank 13829 | -7/Garrison | Discovered new exit (range 13) 13863 | -7/Garrison | Triggered checkpoint 13923 | -7/Garrison | Lost 3 allies 14102 | -7/Garrison | Expanded RIF knowledge: Coupler Efficiency 14129 | -7/Garrison | Entered Factory 14129 | -7/Factory | Accompanied by 1 ally 14291 | -7/Factory | Identified exit to Garrison 14530 | -7/Factory | Entered Garrison 14530 | -7/Garrison | Accompanied by 3 allies 14752 | -7/Garrison | Triggered checkpoint 14810 | -7/Garrison | Expanded RIF knowledge: Program Shield 14826 | -7/Garrison | Garrison Relay disabled 14965 | -7/Garrison | Heavy support dispatched to Factory 15021 | -7/Garrison | Triggered checkpoint 15065 | -7/Garrison | Triggered checkpoint 15286 | -7/Garrison | Triggered checkpoint 15369 | -7/Garrison | Discovered new exit (range 12) 15492 | -7/Garrison | Discovered new exit (range 13) 15517 | -7/Garrison | Expanded RIF knowledge: Watcher Feeds 15625 | -7/Garrison | Garrison Relay disabled 15699 | -7/Garrison | Triggered checkpoint 15774 | -7/Garrison | Triggered checkpoint 15824 | -7/Garrison | H-XX Assembler disabled 15964 | -7/Garrison | Garrison Relay disabled 16037 | -7/Garrison | Discovered new exit (range 8) 16059 | -7/Garrison | Entered Factory 16059 | -6/Factory | Accompanied by 5 allies 16059 | -6/Factory | Evolved 2 slots: Power x1, Propulsion x1 16370 | -6/Factory | Repaired Arm. Huge Wheel 16565 | -6/Factory | Discovered new exit (range 5) 16629 | -6/Factory | Identified exit to Garrison 16715 | -6/Factory | Entered Garrison 16715 | -6/Garrison | Accompanied by 7 allies 16865 | -6/Garrison | Triggered checkpoint 16911 | -6/Garrison | Lost 5 allies 17143 | -6/Garrison | Triggered checkpoint 17192 | -6/Garrison | Lost 3 allies 17205 | -6/Garrison | Destroyed 9 combat bots 17249 | -6/Garrison | Build established: Bothacker-Tank 17553 | -6/Garrison | Triggered checkpoint 17570 | -6/Garrison | Expanded RIF knowledge: Zone Cloak 17599 | -6/Garrison | Garrison Relay disabled 17668 | -6/Garrison | Discovered new exit (range 9) 17867 | -6/Garrison | Build established: Botlord-Tank 17879 | -6/Garrison | Garrison Relay disabled 17945 | -6/Garrison | Triggered checkpoint 18029 | -6/Garrison | Garrison Relay disabled 18083 | -6/Garrison | Spotted Executioner 18083 | -6/Garrison | Spotted Executioner 18099 | -6/Garrison | Discovered new exit (range 3) 18139 | -6/Garrison | Spotted B-75 Beast 18168 | -6/Garrison | Assimilated Beast 5a with formatsys_high 18373 | -6/Garrison | Triggered checkpoint 18437 | -6/Garrison | Discovered new exit (range 14) 18551 | -6/Garrison | Entered Factory 18551 | -5/Factory | Accompanied by 3 allies 18551 | -5/Factory | Evolved 2 slots: Utility x2 18672 | -5/Factory | Garrison activated, responded to threat 18818 | -5/Factory | Identified exit to Garrison 18819 | -5/Factory | Entered Garrison 18819 | -5/Garrison | Accompanied by 1 ally 18873 | -5/Garrison | Triggered checkpoint 18951 | -5/Garrison | Garrison Relay disabled 19026 | -5/Garrison | Triggered checkpoint 19075 | -5/Garrison | Triggered checkpoint 19120 | -5/Garrison | Destroyed 10 combat bots 19130 | -5/Garrison | Lost 13 parts (2p3n4u4w) 19417 | -5/Garrison | Discovered new exit (range 9) 19707 | -5/Garrison | Triggered checkpoint 19791 | -5/Garrison | Lost 3 allies 19809 | -5/Garrison | Triggered checkpoint 19887 | -5/Garrison | Lost 3 allies 20031 | -5/Garrison | Triggered checkpoint 20096 | -5/Garrison | Garrison Relay disabled 20178 | -5/Garrison | Garrison Relay disabled 20331 | -5/Garrison | Triggered checkpoint 20361 | -5/Garrison | Expanded RIF knowledge: Patrol Navigation 20378 | -5/Garrison | Garrison Relay disabled 20460 | -5/Garrison | Discovered new exit (range 14) 20888 | -5/Garrison | Lost 5 allies 20943 | -5/Garrison | Triggered checkpoint 20995 | -5/Garrison | Garrison Relay disabled 21062 | -5/Garrison | Discovered new exit (range 14) 21078 | -5/Garrison | Found embedded Infiltrators 21131 | -5/Garrison | Triggered checkpoint 21224 | -5/Garrison | Build established: Botlord-Gunner 21331 | -5/Garrison | Identified exit to Factory 21337 | -5/Garrison | Entered Factory 21337 | -4/Factory | Accompanied by 3 allies 21337 | -4/Factory | Evolved 2 slots: Utility x2 21359 | -4/Factory | P-70 Sage assimilated allied 4Q-1WB(x) 21545 | -4/Factory | Allied Derelicts emerged from ambush trap array 21646 | -4/Factory | Build established: Botlord-Tank 21843 | -4/Factory | Garrison activated, responded to threat 21862 | -4/Factory | Spotted B-86 Titan 21866 | -4/Factory | Assimilated Titan 7a with formatsys_high 21875 | -4/Factory | Identified exit to Garrison 21884 | -4/Factory | Lost 3 allies 21902 | -4/Factory | Entered Garrison 21902 | -4/Garrison | Accompanied by 3 allies 22052 | -4/Garrison | Triggered checkpoint 22077 | -4/Garrison | Garrison Relay disabled 22161 | -4/Garrison | Triggered checkpoint 22164 | -4/Garrison | Triggered checkpoint 22181 | -4/Garrison | Spotted B-86 Titan 22186 | -4/Garrison | Triggered checkpoint 22193 | -4/Garrison | Allies destroyed B-86 Titan 22209 | -4/Garrison | Lost 4 allies 22211 | -4/Garrison | Triggered checkpoint 22310 | -4/Garrison | Discovered new exit (range 11) 22315 | -4/Garrison | Spotted B-75 Beast 22319 | -4/Garrison | Rewired B-75 Beast 22326 | -4/Garrison | Rewired B-75 Beast 22336 | -4/Garrison | Allies destroyed B-75 Beast 22374 | -4/Garrison | Identified exit to Factory 22698 | -4/Garrison | Discovered exit to Factory (range 12) 22726 | -4/Garrison | Triggered checkpoint 22800 | -4/Garrison | Found embedded Infiltrators 22804 | -4/Garrison | Lost 6 allies 22886 | -4/Garrison | Triggered checkpoint 23005 | -4/Garrison | Expanded RIF knowledge: Autooverride 23062 | -4/Garrison | Triggered checkpoint 23204 | -4/Garrison | Triggered checkpoint 23257 | -4/Garrison | Garrison Relay disabled 23300 | -4/Garrison | Discovered exit to Factory (range 9) 23467 | -4/Garrison | Entered Factory 23467 | -4/Factory | Accompanied by 6 allies 23620 | -4/Factory | Unchained authorized (6S-H0T) 23901 | -4/Factory | Discovered new exit (range 14) 24106 | -4/Factory | Discovered new exit (range 15) 24275 | -4/Factory | Identified exit to Garrison 24275 | -4/Factory | Entered Garrison 24375 | -4/Garrison | Triggered checkpoint 24481 | -4/Garrison | Garrison Relay disabled 24552 | -4/Garrison | Spotted B-86 Titan 24565 | -4/Garrison | Triggered checkpoint 24569 | -4/Garrison | Allies destroyed B-86 Titan 24596 | -4/Garrison | Triggered checkpoint 24657 | -4/Garrison | Lost 11 allies 24749 | -4/Garrison | Lost 5 allies 24859 | -4/Garrison | Discovered new exit (range 10) 24877 | -4/Garrison | Expanded RIF knowledge: Autooverride 24897 | -4/Garrison | Identified exit to Research 24951 | -4/Garrison | Triggered checkpoint 25014 | -4/Garrison | Garrison Relay disabled 25129 | -4/Garrison | Triggered checkpoint 25268 | -4/Garrison | Garrison Relay disabled 25309 | -4/Garrison | Triggered checkpoint 25374 | -4/Garrison | Discovered exit to Research (range 13) 25392 | -4/Garrison | Spotted B-86 Titan 25609 | -4/Garrison | Discovered exit to Research (range 15) 25651 | -4/Garrison | Entered Research 25651 | -3/Research | Accompanied by 1 ally 25651 | -3/Research | Evolved 2 slots: Propulsion x2 25914 | -3/Research | Lost 4 parts (1p1u2w) 25956 | -3/Research | Spotted B-86 Titan 25961 | -3/Research | Garrison activated, responded to threat 25963 | -3/Research | Identified exit to Garrison 25963 | -3/Research | Entered Garrison 25963 | -3/Garrison | Accompanied by 1 ally 25983 | -3/Garrison | Expanded RIF knowledge: Signal Jamming 26006 | -3/Garrison | Rescued a captive Derelict 26065 | -3/Garrison | Triggered checkpoint 26107 | -3/Garrison | Garrison Relay disabled 26232 | -3/Garrison | Lost 3 allies 26303 | -3/Garrison | Triggered checkpoint 26312 | -3/Garrison | Spotted B-86 Titan 26315 | -3/Garrison | Triggered checkpoint 26321 | -3/Garrison | Triggered checkpoint 26332 | -3/Garrison | Triggered checkpoint 26357 | -3/Garrison | Destroyed B-86 Titan 26376 | -3/Garrison | Lost 3 allies 26555 | -3/Garrison | Triggered checkpoint 26592 | -3/Garrison | Garrison Relay disabled 26608 | -3/Garrison | Garrison Relay disabled 26631 | -3/Garrison | Triggered checkpoint 26842 | -3/Garrison | Lost 3 allies 26843 | -3/Garrison | Lost 3 parts (2n1w) 26857 | -3/Garrison | Discovered new exit (range 12) 26888 | -3/Garrison | Rewired Striker 26907 | -3/Garrison | Rewired Striker 26975 | -3/Garrison | Identified exit to Research 26976 | -3/Garrison | Entered Research 26976 | -2/Research | Accompanied by 4 allies 26976 | -2/Research | Evolved 2 slots: Propulsion x1, Utility x1 27776 | -2/Research | Identified exit to Access 27796 | -2/Research | Cargo convoy interrupted 28012 | -2/Research | Entered Access 28012 | -1/Access | Accompanied by 2 allies 28012 | -1/Access | Evolved 2 slots: Power x1, Utility x1 28284 | -1/Access | Found Gamma Bomb Array 28581 | -1/Access | Assimilated ARC 10a with formatsys_deep 28804 | -1/Access | Lost 6 allies 29143 | -1/Access | Identified exit to Surface 29215 | -1/Access | P-80 Master assimilated allied Director 10a 29594 | -1/Access | Lost 3 allies 29856 | *** | Escaped! Last Messages --------------- 29732_ Acquired 200 matter. 29755_ Director 10c reveals location of hidden door. 29779_ JQ%GKI KIVFESV ERCBRL:NKIP8OT% 8WTXC% 29791_ Connecting with Terminal... 29791_ Discarded Relay Coupler [Grunt]. 29792_ Connecting with Terminal... 29794_ Detecting nearby Garrison Access. 29799_ Dismantling Sealed Barrier with Imp. Plasma Cutter. 29807_ System corrupted: Substantial component data lost. 29807_ Dismantling Sealed Barrier with Imp. Plasma Cutter. 29824_ System corrupted: Heat flow error (+288). 29825_ Dismantling Sealed Barrier with Imp. Plasma Cutter. 29829_ Sealed Barrier dismantled. 29835_ Dismantling Main Access Shell with Imp. Plasma Cutter. 29845_ Main Access Shell dismantled. Map ----- +----------------------------------------------------+ | ????????????????????????????????????????# # # | | ????????????????????????????????????????# # # | | ????????????????????????????????????????# # # | | ????????????????????????????????????????# # # | | ????????????????????????????????????????# # # | | ????????????????????????????????????????# + # | | ????????????????????????????????????????# # # | | ????????????????????????????????????????# # # | | ????????????????????????????????????????# # # | | ????????????????????????????????????????# # # | | ??????????????????????????????????? ????# # # | | ?????????????????????????????????"" ???# # # | | ?????????????????????????????????"" ??####### # | | ??????????????????????????????????" ????????# # | | ?????????????????????BB????BB?????? ???????# # | | ?????????????????????BB????BB???????? ######## # | | ?????????????????????????????????????? +* # | | ???????????????????????????????????????#%= = # | | ???????????????????????????????????????#! " | | ???????????????????????????????????????# * = " | | ???????????????????#""?????????????????# %= %[ T | | ???????????????????# ?????????????????# " | | ???????????????????# """"""???????????# " | | ???????????????????# " "????####???# # | | ???????????????????# " "" "????# ??#[[ # | | ?????Y?????????????# " "@ "????# ??#= #####+## | | ???????????????????# " "??#?# ?# =#??????? | | ???????????????????# """ #?# ?# #??????? | | ???????????????????# #?# # #??????? | | ???????????????????# #?# # #??????? | | ???????????????????" """"""""?# + #??????? | | ???????????????????#"" #?# # #??????? | | ???????????????????#"" #?# # #??????? | | ???????????????????#"" #?# ?# #??????? | | ???????????????????#T #?# ?# #???+### | | ???????????????????#"" #?# ??# #?? ! ! | | ???????????????????#"" #?#####?## ##? | | ???????????????????#"" ######### # " | | ?????????????? # """ | | ?????????????? + "" | | ??????????????+######################## # " | | ??????????????????????????????????????##+### | | ?????????????????????????????????????? ?? | | ???????????????????????????????????? #?##### | | ?????????????????????????????????? " #?????? | | ?????????????????????????????????#""" #?????? | | ?????????????????????????????????# """ #?????? | | ?????????????????????????????????# " #?????? | | ?????????????????????????????????# #?????? | | ?????????????????????????????????# #?????? | +----------------------------------------------------+ Best States ------------- Heat Dissipation 118 Coolant Potential 100 Energy Generation 59 Energy Capacity 540 Matter Stores 300 Matter Capacity 300 Sight Range 16 Robot Scan Range 20 Terrain Scan Range 20 Terrain Scan Density 10 Jamming Range 12 Base Temperature (-) 100 Armor Coverage 1200 Resistance: KI 20 Resistance: TH 10 Core Shielding 30 Weapon Cycling 15 Evasion (%) 40 Targeting Accuracy 6 Target Analysis 6 Core Analysis 6 Recoil Reduction 7 Offensive Hacking 22 Defensive Hacking 12 Relay Coupler Types 6 Relay Coupler Value 162 Authchip Count 1 Item Schematics ----------------- Huge Storage Unit | -9/Materials | Scanalyzed Cryofiber Web | -9/Materials | Scanalyzed Imp. Treads | -9/Materials | Scanalyzed Hacking Suite | -9/Materials | Scanalyzed Exp. Sensor Array | -8/Materials | Scanalyzed Robot Schematics ------------------ None Fabricated ------------ Nothing Repaired ---------- Imp. Light Cannon | 67% | -9/Materials Imp. Light Cannon | 84% | -9/Materials Imp. Light Cannon | 4% | -8/Materials Arm. Huge Wheel | 53% | -6/Factory Studied --------- Imp. Treads | -9/Materials | Hacked Lgt. Treads | -9/Materials | Hacked Imp. Light Cannon | -9/Materials | Hacked Alien Tech Used ----------------- None Achievements -------------- Deep Understanding RIFT Wizard Challenges ------------ None Game ------ Seed CoolantShockDissipator Manual? 0 Play Time 03:24:04 Cumulative 2022.7 hours Start 2025.11.11 @ 00:49:03 End 2025.11.11 @ 04:11:34 Sessions 1 Manual Loads 0 Difficulty Rogue Special Mode None Game No. 1316 Rogue 1312 Adventurer 4 Explorer 0 Win Type 0 Total 272 Types 204/13/21/10/3/1/4/9/5/2 Lore% 98 Gallery% 96 Achievement% 85 Wizard Run 0 Options --------- Layout 2 ASCII 0 Keyboard 1 Movement Vi Keybinds 0 Fullscreen 0 Font 24/Terminus Map View 59x48 Zoom Use 0% Tactical HUD 1 Map Filters NONE Filters NONE Steam 1 RUN: 389bb55e-5d6f-4e92-9db7-a0eae791ad85